Workbook

Sheet Sheet1
A1: 213-235 Montauk Highway in West Sayville
A2: Income | B2: Monthly Rent | C2: % RE Taxes | D2: Annual Tax | E2: Base Tax Amount | F2: Tax Contibution | G2: Lease term | H2: Sq. Ft
A3: Tenant 1 | B3: =2956+(F3/12) -> 3359.016125 | C3: 0.15 | D3: =-$B$14*C3 -> 14022.4965 | E3: =61242.02*C3 -> 9186.303 | F3: =IF((D3-E3)>0,(D3-E3),0) -> 4836.1935 | G3: 12/31/2021-12/31/2027
A4: Tenant 2 | B4: =2141+(F4/12) -> 2162.053317 | C4: 0.07 | D4: 6543.8317 | E4: =89874.17*C4 -> 6291.1919 | F4: 252.6398 | G4: 12/31/2021-12/31/2027
A5: Tenant 3 | B5: =6114.83+(F5/12) -> 6114.83 | C5: 0.16 | D5: 14957.3296 | E5: =112063*C5 -> 17930.08 | F5: 0 | G5: 08/01/2020-12/31/2026
A6: Tenant 4 | B6: =2715+(F6/12) -> 2909.977067 | C6: 0.07 | D6: 6543.8317 | E6: =60058.67*C6 -> 4204.1069 | F6: 2339.7248 | G6: 11/06/2019-12/31/2024
A7: Tenant 5 | B7: =15587.64+(F7/12) -> 15736.81187 | C7: 0.46 | D7: 43002.3226 | E7: =89591.87*C7 -> 41212.2602 | F7: 1790.0624 | G7: 10/05/2020-09/30/2025
A8: Tenant 6 | B8: =3749.38+(F8/12) -> 3778.870908 | C8: 0.11 | D8: 10283.1641 | E8: =90266.12*C8 -> 9929.2732 | F8: 353.8909 | G8: 06/17/2019-05/31/2024
B9: 1126.65 | C9: 0 | D9: 0 | E9: =-$B$14*D9 -> 0 | F9: 0 | G9: 06/17/2019-05/31/2024 | H9: 0
A10: Totals | B10: =SUM(B3:B9) -> 35188.20928 | C10: 1.02 | D10: 95352.9762 | E10: 88753.2152 | F10: 9572.5114 | H10: =SUM(H3:H9) -> 0
A11: Annual Income | B11: =B10*12 -> 422258.5114
A13: Expenses
A14: Taxes | B14: -93483.31
A15: Property Insurance | B15: -10126.31
A16: Electric | B16: -22970.43
A17: Gas | B17: -5573.39
A18: Water | B18: -1017.2
A19: Phone Alarm | B19: -462.36
A20: Security alarm | B20: -332
A21: Trash removal | B21: -2331.59
A22: Window Cleaning | B22: -780
A23: Landscaping | B23: =-4004.41 -> -4004.41
A24: Snow removal | B24: -1405.27
A25: Total Expenses | B25: =SUM(B14:B24) -> -142486.27
A27: Yearly Income | B27: =B11 -> 422258.5114
A29: Net Income | B29: =B27+B25 -> 279772.2414

Sheet Sheet2

Sheet Sheet3
